Cogmind - Beta 13 @@@ ROGUE MODE // 2024.04.19 @ 02:10:22 Player: sick0r Result: Destroyed by 6M-U6X(R) with Subdweller Beam Cannon Performance ------------- Evolutions (0) 0 Regions Visited (2) 400 Robots Destroyed (23) 115 Value Destroyed (707) 707 Prototype IDs (0) 0 Alien Tech Used (0) 0 Bonus (0) 0 TOTAL SCORE: 1222 Bonus ------- None Cogmind --------- Core Integrity 0/250 Matter 105/300 Energy 249/250 System Corruption 2% Temperature Cool (9) Movement Rolling (115) Ox1 Location -10/Subcaves Parts ------- > --- POWER (1) -------- Ion Engine > --- PROPULSION (2) --- Compact Wheel > --- UTILITY (2) ------ Large Storage Unit Core Shielding > --- WEAPON (2) ------- Particle Gun Heavy Assault Rifle > --- INVENTORY (15) --- Wheel Subdweller Monowheel Heat Sink Large Storage Unit Large Battery (200) Signal Interpreter Particle Gun Beam Cannon Heavy Hammer Peak State ------------ > --- POWER ------------ Ion Engine > --- PROPULSION ------- Light Treads Light Treads > --- UTILITY ---------- Large Storage Unit Hacking Suite > --- WEAPON ----------- Heavy Assault Rifle Heavy Assault Rifle > --- INVENTORY -------- Ion Engine Light Treads Light Treads Wheel Compact Wheel Compact Wheel Heat Sink Large Storage Unit Large Battery Signal Interpreter Core Shielding Particle Gun Particle Gun Beam Cannon Grenade Launcher [Rating: 12] Favorites ----------- Power Ion Engine Engine Ion Engine Propulsion Light Treads Treads Light Treads Leg Aluminum Leg Wheel Compact Wheel Utility Hacking Suite Storage Large Storage Unit Hackware Hacking Suite Protection Core Shielding Weapon Beam Cannon Energy Gun Particle Gun Energy Cannon Beam Cannon Ballistic Gun Heavy Assault Rifle Launcher Grenade Launcher Special Weapon Flamer Build | -11 -10 -10 ------- Run | Yrd Mat Sub Slots Evolved . | . . . Power . | . . . Propulsion . | . . . Utility . | . . . Weapon . | . . . Parts Attached 39 | 6 24 9 Power 4 | 1 2 1 Engine 4 | 1 2 1 Core . | . . . Reactor . | . . . Propulsion 14 | 2 8 4 Treads 6 | . 5 1 Leg 5 | 2 3 . Wheel 3 | . . 3 Hover . | . . . Flight . | . . . Utility 5 | 1 4 . Device . | . . . Storage 3 | 1 2 . Processor . | . . . Hackware 1 | . 1 . Protection 1 | . 1 . Artifact . | . . . Weapon 16 | 2 10 4 Energy Gun 5 | 1 3 1 Energy Cannon 3 | . 3 . Ballistic Gun 5 | 1 3 1 Ballistic Cannon . | . . . Launcher 2 | . 1 1 Special Weapon 1 | . . 1 Impact Weapon . | . . . Slashing Weapon . | . . . Piercing Weapon . | . . . Special Melee Weapon . | . . . Unidentified Prototypes . | . . . Parts Lost 11 | . 3 8 Power 1 | . . 1 Propulsion 4 | . . 4 Utility 1 | . 1 . Weapon 5 | . 2 3 Highest Loss Streak 4 | . 2 4 To Critical Strikes . | . . . Average Slot Usage (%) 95 | . 96 94 Engine 13 | . 13 12 Treads 21 | . 21 17 Leg 5 | . 6 . Wheel 1 | . . 9 Storage 14 | . 14 14 Hackware 7 | . 9 . Protection 3 | . 1 14 Energy Gun 10 | . 12 4 Energy Cannon 9 | . 9 9 Ballistic Gun 6 | . 6 9 Naked Turns . | . . . Heaviest Build 32 | 14 32 32 Greatest Support 40 | 20 40 40 Greatest Overweight (x) 3 | 3 . 1 Average Overweight (x) . | . . . Largest Inventory Capacity 15 | 8 15 15 Average Capacity 11 | 7 11 15 Most Carried 15 | 8 15 14 Average Carried 10 | 5 10 12 Final Capacity 15 | 8 15 15 Final Carried 14 | 6 14 9 Class Distribution -------------------- 100% | Mutant Dominant Class ---------------- Mutant | -10/Materials Mutant | -10/Subcaves Resources | -11 -10 -10 ----------- Run | Yrd Mat Sub Matter Collected 726 | 238 382 106 Remotely . | . . . Salvage Created 747 | . 646 101 Parts 44 | . 38 6 Haulers Intercepted . | . . . Recyclers Shooed 1 | . 1 . Parts Field Recycled . | . . . Retrieved Matter . | . . . Parts Self-Destructed 9 | . . 9 Prevented . | . . . Kills | -11 -10 -10 ------- Run | Yrd Mat Sub Combat Hostiles Destroyed 17 | . 13 4 Guns 14 | . 12 2 Cannons 2 | . 1 1 AOE 1 | . . 1 Classes Destroyed 5 | . 3 2 Operator 3 | . 3 . Watcher 3 | . 3 . Swarmer 1 | . . 1 Grunt 13 | . 13 . Subdweller 3 | . . 3 Best Kill Streak 3 | . 3 2 Combat Bots Only 3 | . 3 2 Max Kills in Single Turn 1 | . 1 1 Gunslinging . | . . . Exploded 1 | . . 1 Melee . | . . . Uniques/NPCs Destroyed . | . . . Combat | -11 -10 -10 -------- Run | Yrd Mat Sub Hostile Shots Fired 197 | . 82 115 Missed 65 | . 28 37 Damage Taken 1761 | . 682 1079 Core 253 | . 83 170 Absorbed by Shields . | . . . Redirected to Shielding 34 | . . 34 Regen/Repaired (Parts) 58 | . 58 . Core Remaining (%) 100 | 100 . . Volleys Fired 105 | . 74 31 Largest 2 | . 2 2 Hottest 165 | . 125 165 Shots Fired 188 | . 127 61 Gun 152 | . 117 35 Cannon 29 | . 8 21 Launcher 6 | . 2 4 Special 1 | . . 1 Kinetic 93 | . 70 23 Thermal 89 | . 55 34 Explosive 6 | . 2 4 Electromagnetic . | . . . Robot Hit Streak 8 | . 8 8 Robot Miss Streak 5 | . 5 5 Penetration Max . | . . . Secondary Targets 1 | . 1 . Max Gunslinging Chain 1 | . 1 . Shots Hit Robots 116 | . 73 43 Core Hits 46 | . 38 8 Critical Kills . | . . . Critical Parts Destroyed . | . . . Critical Strikes 2 | . 2 . Burn 2 | . 2 . Melee Attacks . | . . . Impact . | . . . Slashing . | . . . Piercing . | . . . Sneak Attacks . | . . . Combat Hostiles . | . . . Follow-up Attacks . | . . . Damage Inflicted 1570 | . 1007 563 Guns 1140 | . 901 239 Cannons 229 | . 106 123 Explosions 190 | . . 190 Melee . | . . . Ramming . | . . . Kinetic 666 | . 536 130 Thermal 714 | . 471 243 Explosive 190 | . . 190 Electromagnetic . | . . . Impact . | . . . Slashing . | . . . Piercing . | . . . Highest Corruption 2 | . 2 2 Average Corruption 2 | . 2 2 Corruption Purged . | . . . Corruption Blocked . | . . . Effects 26 | . 18 8 Message Errors 5 | . 4 1 Matter Fused 5 | . 3 2 Heat Flow Errors 4 | . 3 1 Energy Discharges 1 | . 1 . Parts Rejected 1 | . . 1 Parts Fused 1 | . 1 . Data Loss (minor) 6 | . 4 2 Data Loss (major) 1 | . 1 . Misfires 2 | . 1 1 Overload Shots . | . . . Overflow Damage . | . . . Projectiles . | . . . Explosions . | . . . Melee . | . . . Knockbacks . | . . . Impact . | . . . Kinetic . | . . . Secondary . | . . . Self-Inflicted Damage 45 | . . 45 Shots 2 | . . 2 Rammed . | . . . Targets Rammed . | . . . Kicked . | . . . Crushed . | . . . Highest Temperature 275 | . 275 218 Average Temperature 59 | . 59 50 Received Heat Transfer 720 | . 402 318 Siege Activations . | . . . Robots Corrupted . | . . . Combat Hostiles . | . . . Parts Fried . | . . . Impact Corruptions . | . . . Robots Melted . | . . . Combat Hostiles . | . . . Parts Melted 1 | . . 1 Heat Transferred 1982 | . 1384 598 Parts Sabotaged . | . . . Parts Stolen . | . . . Parts Stripped . | . . . Power Chain Reactions . | . . . Alert | -11 -10 -10 ------- Run | Yrd Mat Sub Peak Influence 261 | . 261 . Initial . | . . . Average 66 | . 68 . Maximum Alert Level 1 | . 1 . Low Security (%) 95 | 100 95 . Level 1 4 | . 4 . Level 2 . | . . . Level 3 . | . . . Level 4 . | . . . Level 5 . | . . . High Security . | . . . Max Security . | . . . Squads Dispatched 5 | . 5 . Investigation 2 | . 2 . Extermination . | . . . Reinforcement 3 | . 3 . Assault . | . . . Garrison . | . . . Intercept . | . . . Searches Triggered . | . . . Construction Impeded . | . . . Haulers Reinforced . | . . . Active Scanning Responses . | . . . Cargo Convoy Interrupts . | . . . Stealth | -11 -10 -10 --------- Run | Yrd Mat Sub Distress Signals . | . . . Communications Jammed . | . . . Distress Signals . | . . . Times Spotted 33 | . 25 8 Peak Tracking Total 6 | . 5 6 Tactical Retreats 4 | . 1 3 Traps | -11 -10 -10 ------- Run | Yrd Mat Sub Traps Triggered 3 | . 3 . Indirectly . | . . . Trap Hack Attempts . | . . . Triggered . | . . . Disarmed . | . . . Reprogrammed . | . . . Reused . | . . . Traps Extracted . | . . . Installed . | . . . Triggered . | . . . Machines | -11 -10 -10 ---------- Run | Yrd Mat Sub Machines Disabled . | . . . Max in Single Turn . | . . . Machines Repaired . | . . . Machines Dismantled . | . . . Machines Sabotaged . | . . . Overloaded Fab Kills . | . . . Hacking | -11 -10 -10 --------- Run | Yrd Mat Sub Machines Accessed 5 | . 5 . Terminals 4 | . 4 . Fabricators . | . . . Repair Stations 1 | . 1 . Recycling Units . | . . . Scanalyzers . | . . . Garrison Access . | . . . Total Hacks 20 | . 20 . Successful 9 | . 9 . Failed 11 | . 11 . Catastrophic . | . . . Database Lockouts . | . . . Manual . | . . . Terminals 16 | . 16 . Fabricators . | . . . Repair Stations 4 | . 4 . Recycling Units . | . . . Scanalyzers . | . . . Garrison Access . | . . . Terminal Hacks 5 | . 5 . Robot Analysis 1 | . 1 . Locate Traps 1 | . 1 . Investigation Status 1 | . 1 . Reinforcement Status 1 | . 1 . Registered Components 1 | . 1 . Fabricator Hacks . | . . . Repair Station Hacks 4 | . 4 . Scan Component 2 | . 2 . Repair 2 | . 2 . Recycling Unit Hacks . | . . . Scanalyzer . | . . . Garrison Access Hacks . | . . . Unauthorized Hacks . | . . . Terminals . | . . . Fabricators . | . . . Repair Stations . | . . . Recycling Units . | . . . Scanalyzers . | . . . Garrison Access . | . . . Data Cores Recovered . | . . . Used . | . . . Hacking Detections 4 | . 4 . Full Trace Events 1 | . 1 . Feedback Events . | . . . Feedback Blocked . | . . . Robot Schematics Acquired . | . . . Robots Built . | . . . Authchips . | . . . Time . | . . . Total Robot Build Rating . | . . . Part Schematics Acquired . | . . . Parts Built . | . . . Authchips . | . . . Time . | . . . Total Part Build Rating . | . . . Parts Repaired 2 | . 2 . Time 52 | . 52 . Parts Recycled . | . . . Recycled Matter . | . . . Retrieved Matter . | . . . Retrieved Components . | . . . Parts Scanalyzed . | . . . Part Schematics Acquired . | . . . Parts Damaged . | . . . Bothacking | -11 -10 -10 ------------ Run | Yrd Mat Sub Used RIF Installer . | . . . Robots Hacked . | . . . Non-combat . | . . . Combat . | . . . Robot Hacks Applied . | . . . Relay Couplers Released . | . . . Fabnet Peak Effective % . | . . . Robots Rewired . | . . . Allies Hacked . | . . . Hacks Repelled . | . . . Allies | -11 -10 -10 -------- Run | Yrd Mat Sub Total Allies . | . . . Largest Group . | . . . Highest-Rated Group . | . . . Highest-Rated Ally . | . . . Total Orders . | . . . Ally Attacks . | . . . Total Damage . | . . . Kills . | . . . Allies Corrupted . | . . . Allies Melted . | . . . Intel | -11 -10 -10 ------- Run | Yrd Mat Sub Robot Analysis Total 1 | . 1 . Derelict Logs Recovered 2 | . . 2 Drone Launches . | . . . Drone Recoveries . | . . . Exploration | -11 -10 -10 ------------- Run | Yrd Mat Sub Turns Passed 2540 | 90 2047 403 Spaces Moved 1337 | 45 1079 213 Core 18 | 18 . . Treads 970 | . 849 121 Legs 257 | 27 230 . Wheels 92 | . . 92 Hover . | . . . Flight . | . . . Fastest Speed 50 | 50 120 100 Average Speed 148 | 123 151 135 Slowest Speed 240 | 200 160 240 Overloaded Moves . | . . . Propulsion Burnouts . | . . . Robots Hopped . | . . . Cave-ins Triggered . | . . . Exploration Rate (%) 38 | 4 96 15 Regions Visited 2 Branch Regions 1 Pre-discovered Areas 1 | . . 1 Known Exits Taken . | . . . Unknown Exits Taken 2 | 1 1 . Scrap Searched 1 | . . 1 Spaces Dug . | . . . Terrain Destroyed 38 | . 14 24 Melee . | . . . Projectile . | . . . AOE 38 | . 14 24 Terrain Rammed . | . . . Walls Destroyed . | . . . Machines Disabled . | . . . Actions | -11 -10 -10 --------- Run | Yrd Mat Sub Total 1706 | 77 1364 265 Wait 178 | 19 150 9 Move 1335 | 44 1078 213 Hop . | . . . Pick Up 35 | 8 24 3 Fast Attach 7 | 4 3 . Attach 15 | 2 5 8 Detach . | . . . Swap 17 | . 16 1 Drop 14 | . 14 . Fire 105 | . 74 31 Melee . | . . . Ram . | . . . Kick . | . . . Crush . | . . . Escape Stasis . | . . . Rewire . | . . . Trap . | . . . Miscellaneous . | . . . Route ------- -11/Scrapyard -10/Materials (discovered 5 exits: [*Mat x3] / [*Min] / [*Sub]) -10/Subcaves (discovered 1 exit: [*Mat]) History --------- Turn | Location | Event 12 | -11/Scrapyard | Discovered new exit (range 15) 91 | -11/Scrapyard | Entered Materials 314 | -10/Materials | Build established: Mutant 370 | -10/Materials | Discovered new exit (range 8) 869 | -10/Materials | Discovered new exit (range 5) 1184 | -10/Materials | Discovered new exit (range 15) 1335 | -10/Materials | Discovered new exit (range 7) 1425 | -10/Materials | Discovered new exit (range 15) 2066 | -10/Materials | Repaired Lgt. Treads 2094 | -10/Materials | Repaired Ion Engine 2138 | -10/Materials | Entered Subcaves 2202 | -10/Subcaves | Discovered new exit (range 10) 2224 | -10/Subcaves | Core integrity fell below 50% 2437 | -10/Subcaves | Learned 2 Materials zone layouts 2443 | -10/Subcaves | Lost 4 parts (1p2n1w) 2456 | -10/Subcaves | Core integrity fell below 20% 2497 | -10/Subcaves | Shifting Twisted Machinery released Flamer 2498 | -10/Subcaves | Learned location of Mines (-10) 2541 | -10/Subcaves | Destroyed by 6M-U6X(R) with Subdweller Beam Cannon Last Messages --------------- Acquired Sub. Monowheel. Subatomizers dissect the Sub. Power Source. Acquired derelict log, extracted data. Data stored: Materials zone layouts (x2). 6M-U6X(R): "ARGHSUB!" System corrupted: Component data lost. Grenade Launcher destroyed. Subatomizers dissect the Sub. Power Source. System corrupted: FCS attempts to trigger Particle Gun. System corrupted: Particle Gun misfires. Flamer falls loose from the Twisted Machinery. Acquired derelict log, extracted data. World map updated: -10/Mines. Acquired Flamer. System corrupted: Matter fused (-9). Flamer destroyed. Com. Wheel destroyed. Sub. Monowheel destroyed. JQTI2& XJCCIP9O,MH#>3ZGIAD Map ----- +----------------------------------------------------+ | | | | | | | | | | | | | | | | | ?????????????????????????????????????????????????? | | ?????????????????????????????????????????????????? | | ?????????????????????????????????????????????????? | | ?????????????????????????????????????????????????? | | ?????????????????????????????????????????????????? | | ?????????????????????????????????????????????????? | | ?????????????????????????????????????????????????? | | ?????????????????????????????????????????????????? | | ?????????????????????????????????????????????????? | | ?????????????????????????????????????????????????? | | ?????????????????????????????????????????????????? | | ?????????????????????????????????????????????????? | | ?????????????????????????????????????????????????? | | ?????????????????????????????????????????????????? | | ??????????????????????????##########?????????????? | | ??????????????##########?#; ## #?????????????? | | ??????????????# ## #??#####??????? | | ?????????????????"""" @ R #??#"" #??????? | | ??????????????? " """" # ##### ""##?????? | | ?????????????????? """"""" ## ""##????? | | ???????????????????" ### #### " ??? | | ?????????????????? ??# #?# "" ??? | | ????????????????? ##""### ##### ####????? | | ??????????????? ##?"""""" ##" #???????? | | ???????????????" ????#"" " #???????? | | ????????????????"?????### #???????? | | ????????????????????????####### ## # ####????? | | ??????????????????????????????# #### #????? | | ??????????????????????????????# ##??# ##???? | | ??????????????????????????????###???## # #???? | | ?????????????????????????????????????#### #?##? | | ??????????????????????????????????????## ### ## | | ??????????????????????????????????????# ## | | ????????????????????????????????????##### | | ????????????????????????????????????# # # # | | ???????????????????????????????????## &" ## | | ????????????????????????????????#### "### | | ????????????????????????????????#" # #?# | | ????????????????????????????????#" #" "& ##?? | | ????????????????????????????????### " ##???? | | ??????????????????????????????????## ####?????? | | ???????????????????????????????????## ##????????? | +----------------------------------------------------+ Best States ------------- Heat Dissipation 25 Energy Generation 10 Energy Capacity 250 Matter Stores 300 Matter Capacity 300 Sight Range 16 Terrain Scan Density 10 Core Shielding 20 Evasion (%) 55 Recoil Reduction 2 Offensive Hacking 10 Item Schematics ----------------- None Robot Schematics ------------------ None Fabricated ------------ Nothing Alien Tech Used ----------------- None Achievements -------------- None Challenges ------------ None Game ------ Seed IntegritySurveybotGenerator Manual? 0 Play Time 00:27:39 Cumulative 23.1 hours Start 2024.04.19 @ 01:43:13 End 2024.04.19 @ 02:10:22 Sessions 1 Manual Loads 0 Difficulty Rogue Special Mode None Game No. 24 Rogue 24 Adventurer 0 Explorer 0 Win Type - Total 0 Types 0/0/0/0/0/0/0/0/0 Lore% 15 Gallery% 21 Achievement% 100 Wizard Run 0 Options --------- Layout 1 ASCII 0 Keyboard 0 Movement Mouse Keybinds 0 Fullscreen 1 Font 24/Smallcaps Map View 50x35 Zoom Use 0% Tactical HUD 0 Map Filters NONE Filters NONE Steam 1 RUN: 6d6cc38c-6bbc-4cd7-8117-126d10b0d2f9